bitfinex/quotes_SOLUSD_20250717
["timestamp","ask_amount","ask_price","bid_price","bid_amount"]
[1752752636949,35.38310979,175.96,175.95,0.2]
[1752752637861,57.44368445,175.96,175.95,0.2]
[1752752638263,57.44368445,175.96,175.95,1e-08]
[1752752638455,52.16779376,175.96,175.95,1e-08]
[1752752638654,57.44368445,175.96,175.95,1e-08]
[1752752640471,22.46779376,175.96,175.95,1e-08]
[1752752640679,51.84779376,175.96,175.95,1e-08]
[1752752640856,52.16779376,175.96,175.95,1e-08]
[1752752641459,57.44368445,175.96,175.95,1e-08]
[1752752646376,57.12368445,175.96,175.95,1e-08]
[1752752648084,35.06310979,175.96,175.95,1e-08]
[1752752648393,57.44368445,175.96,175.95,1e-08]
[1752752650012,52.16779376,175.96,175.95,1e-08]
[1752752650271,51.84779376,175.96,175.95,1e-08]
[1752752651279,51.82779376,175.96,175.95,1e-08]
[1752752652282,35.04310979,175.96,175.95,1e-08]
[1752752652499,29.36,175.96,175.95,0.68000001]
[1752752652666,16.78468397,175.98,175.95,0.68000001]
[1752752652867,29.36,175.97,175.95,0.68000001]
[1752752653080,29.36,175.97,175.96,0.68]
[1752752654187,35.04278683,175.97,175.96,0.68]
[1752752655492,35.04278683,175.97,175.96,5.95589069]
[1752752657772,5.68181818,176.0,175.96,5.95589069]
[1752752657971,5.68181818,176.0,175.99,5.27589069]
[1752752658182,35.04181818,176.0,175.99,5.95589069]
[1752752660396,35.04181818,176.0,175.99,0.68]
[1752752660610,35.04181818,176.0,175.97,0.68]
[1752752660971,35.04181818,176.0,175.97,5.95589069]
[1752752661286,16.78468397,175.99,175.95,5.9558907]
[1752752661492,29.36,175.98,175.95,5.9558907]
[1752752661917,29.36,175.98,175.95,1e-08]
[1752752662605,29.36,175.98,175.95,0.68000001]
[1752752662806,5.68278683,175.97,175.95,0.68000001]
[1752752662989,29.34,175.96,175.95,0.68000001]
[1752752663388,29.34,175.96,175.95,5.9558907]
[1752752664391,29.66,175.96,175.95,1e-08]
[1752752664607,34.93589069,175.96,175.95,1e-08]
[1752752664809,57.40368445,175.96,175.95,1e-08]
[1752752670132,22.46779376,175.96,175.95,1e-08]
[1752752670355,57.08368445,175.96,175.95,1e-08]
[1752752672832,10.95900048,175.96,175.95,1e-08]
[1752752673130,35.02310979,175.96,175.95,0.69000001]
[1752752675307,35.02310979,175.96,175.95,1e-08]
[1752752675308,40.29900048,175.96,175.95,1e-08]
[1752752676539,35.34310979,175.96,175.95,1e-08]
[1752752676718,40.61900048,175.96,175.95,1e-08]
[1752752677214,40.29900048,175.96,175.95,1e-08]
[1752752677549,57.40368445,175.96,175.95,1e-08]
[1752752677738,57.08368445,175.96,175.95,1e-08]
[1752752683337,57.40368445,175.96,175.95,1e-08]
[1752752683930,52.12779376,175.96,175.95,1e-08]
[1752752684232,57.40368445,175.96,175.95,1e-08]
[1752752685441,16.78468397,175.95,175.91,0.03]
[1752752685750,5.27589069,175.93,175.91,0.03]
[1752752685924,29.34,175.92,175.91,0.03]
[1752752687142,29.34,175.92,175.91,0.72]
[1752752687530,35.024402,175.92,175.91,0.72]
[1752752689745,35.024402,175.92,175.91,5.99589069]
[1752752690634,29.34,175.92,175.91,5.99589069]
[1752752691828,35.024402,175.92,175.91,0.72]
[1752752692029,35.024402,175.92,175.91,5.99589069]
[1752752693051,29.34,175.92,175.91,5.99589069]
[1752752695443,29.34,175.93,175.91,5.99589069]
[1752752695651,29.34,175.93,175.92,5.96589069]
[1752752695948,35.02407889,175.93,175.92,0.69]
[1752752696124,35.02407889,175.93,175.92,5.96589069]
[1752752696552,29.34,175.93,175.92,5.96589069]
[1752752697821,16.78468397,176.01,175.92,5.96589069]
[1752752698020,29.34,176.0,175.98,5.27589069]
[1752752698242,29.34,176.0,175.99,0.69]
[1752752698443,35.02181818,176.0,175.99,5.96589069]
[1752752700253,35.02181818,176.0,175.98,5.27589069]
[1752752700435,35.02181818,176.0,175.93,23.2]
[1752752700637,35.02181818,176.0,175.98,5.27589069]
[1752752700936,0.06,176.01,175.99,5.97589069]
[1752752701145,29.4,176.01,176.0,5.97589069]
[1752752701478,0.06,176.01,176.0,5.97589069]
[1752752704164,29.38,176.01,176.0,5.97589069]
[1752752704373,29.38,176.01,175.99,5.27589069]
[1752752704561,29.38,176.01,175.98,5.97589069]
[1752752704867,29.38,176.01,175.97,5.27589069]
[1752752705039,5.59589069,176.0,175.95,5.27589069]
[1752752705243,29.32,175.99,175.95,5.27589069]
[1752752705453,29.32,175.99,175.95,5.97589069]
[1752752705647,5.68246391,175.98,175.95,0.7]
[1752752705853,29.32,175.97,175.93,5.97589069]
[1752752706482,29.32,175.97,175.93,0.7]
[1752752706856,5.68310979,175.96,175.91,6.00589069]
[1752752707055,29.32,175.95,175.92,0.7]
[1752752707353,29.32,175.95,175.92,5.97589069]
[1752752707688,29.32,175.95,175.91,5.30589069]
[1752752707855,34.91589069,175.95,175.91,0.03]
[1752752708292,5.59589069,175.94,175.91,0.03]
[1752752708592,29.32,175.93,175.91,0.03]
[1752752708758,5.684402,175.92,175.91,0.03]
[1752752709985,5.684402,175.92,175.91,0.73]
[1752752710167,35.004402,175.92,175.91,0.73]
[1752752711080,35.004402,175.92,175.91,0.03]
[1752752713989,35.004402,175.92,175.9,0.03]
[1752752713990,16.78468397,175.91,175.9,0.03]
[1752752714285,22.38057466,175.91,175.9,0.03]
[1752752714965,16.78468397,175.91,175.9,0.03]
[1752752715186,22.06057466,175.91,175.9,0.03]
[1752752715682,5.68472514,175.91,175.9,0.03]
[1752752715867,35.00472514,175.91,175.9,0.03]
[1752752718681,35.00472514,175.91,175.9,0.73]
[1752752719197,35.00472514,175.91,175.9,0.03]
[1752752720101,35.00472514,175.91,175.9,0.73]
[1752752720398,5.68472514,175.91,175.9,0.73]
[1752752720694,35.06472514,175.91,175.9,0.73]
[1752752720996,35.06472514,175.91,175.9,0.03]
[1752752724394,35.38472514,175.91,175.9,0.03]
[1752752724777,57.4452998,175.91,175.9,0.03]
[1752752724990,57.4452998,175.91,175.9,1e-08]
[1752752725683,16.78468397,175.88,175.87,1e-08]
[1752752725986,51.38057466,175.88,175.87,1e-08]
[1752752726195,51.70057466,175.88,175.87,1e-08]
[1752752727178,51.38057466,175.88,175.87,1e-08]
[1752752728373,51.38057466,175.88,175.87,0.70000001]
[1752752728374,5.68569479,175.88,175.87,0.70000001]
[1752752728579,35.00569479,175.88,175.87,5.9758907]
[1752752729204,29.32,175.88,175.87,5.9758907]
[1752752730999,29.32,175.88,175.87,0.70000001]
[1752752731206,35.00569479,175.88,175.87,5.9758907]
[1752752731702,29.32,175.88,175.87,5.9758907]
[1752752732294,29.32,175.89,175.87,5.9758907]
[1752752732497,29.32,175.89,175.88,5.92589069]
[1752752734520,35.00537153,175.89,175.88,5.92589069]
[1752752735405,29.32,175.89,175.88,5.92589069]
[1752752735704,5.74482065,175.91,175.88,5.92589069]
[1752752735923,5.74482065,175.91,175.89,0.65]
[1752752735924,29.32,175.9,175.89,0.65]
[1752752736211,29.32,175.9,175.89,5.92589069]
[1752752737219,0.06,175.91,175.89,29.12589069]
[1752752737528,0.06,175.91,175.9,5.92589069]
[1752752737905,0.06,175.91,175.9,60.40178138]
[1752752738231,5.68268216,175.98,175.9,60.40178138]
[1752752738444,29.32,175.97,175.91,0.65]
[1752752738729,5.68310979,175.96,175.91,5.92589069]
[1752752738935,34.95589069,175.95,175.89,0.65]
[1752752739142,5.27589069,175.94,175.89,5.92589069]
[1752752739310,34.95589069,175.93,175.87,5.9258907]
[1752752740030,34.95589069,175.93,175.87,31.9258907]
[1752752740526,29.68,175.93,175.88,5.27589069]
[1752752740704,5.684402,175.92,175.88,5.92589069]
[1752752741029,29.3,175.91,175.88,5.92589069]
[1752752741221,29.3,175.91,175.89,5.92589069]
[1752752741428,5.684402,175.92,175.9,5.92589069]
[1752752741737,29.3,175.91,175.9,5.92589069]
[1752752742900,0.06,175.93,175.9,11.61088649]
[1752752743138,0.06,175.93,175.92,5.27589069]
[1752752743623,0.06,175.93,175.92,5.92589069]
[1752752747332,0.06,175.93,175.91,5.27589069]
[1752752747503,29.36,175.93,175.91,5.92589069]
[1752752747699,0.06,175.93,175.92,5.92589069]
[1752752749830,0.06,175.93,175.92,37.61029269]
[1752752750332,0.06,175.93,175.92,11.61029269]
[1752752751131,0.06,175.99,175.95,26.0]
[1752752751312,0.06,175.99,175.98,5.27589069]
[1752752751708,0.06,175.99,175.98,5.92589069]
[1752752754535,0.06,175.99,175.97,5.27589069]
[1752752754829,0.06,175.99,175.96,5.27589069]
[1752752755025,34.99589069,175.99,175.93,5.92589069]
[1752752755228,0.38,175.98,175.93,5.92589069]
[1752752755417,5.68278683,175.97,175.93,5.92589069]
[1752752755616,5.68278683,175.97,175.93,31.92589069]
[1752752756535,10.95867752,175.97,175.93,26.65]
[1752752757129,5.68278683,175.97,175.93,0.65]
[1752752757634,5.68278683,175.97,175.94,0.65]
[1752752758742,5.68278683,175.97,175.95,0.65]
[1752752759438,5.68246391,175.98,175.94,5.27589069]
[1752752759616,5.68246391,175.98,175.94,5.98589069]
[1752752759816,5.68246391,175.98,175.94,5.27589069]
[1752752760018,5.68246391,175.98,175.95,0.71]
[1752752760535,5.68246391,175.98,175.92,26.0]
[1752752760733,0.38,175.97,175.92,31.27589069]
[1752752760932,23.95157466,175.97,175.9,23.2]
[1752752761138,18.29568397,175.97,175.93,5.27589069]
[1752752761531,5.68310979,175.96,175.91,0.71]
[1752752761838,5.27589069,175.94,175.89,5.27589069]
[1752752762026,0.38,175.93,175.88,5.98589069]
[1752752762821,22.06057466,175.94,175.89,5.98589069]
[1752752763223,16.78468397,175.94,175.89,5.98589069]
[1752752763541,5.68375582,175.94,175.91,5.27589069]
[1752752764214,5.68375582,175.94,175.91,5.98589069]
[1752752764413,20.27314538,175.94,175.89,5.98589069]
[1752752764640,0.38,175.93,175.88,31.27589069]
[1752752764852,0.38,175.93,175.88,5.98589069]
[1752752765019,0.38,175.93,175.89,5.27589069]
[1752752765423,19.89314538,175.94,175.89,5.98589069]
[1752752765725,19.89314538,175.94,175.9,5.98589069]
[1752752765933,29.28,175.93,175.91,5.98589069]
[1752752766120,29.28,175.93,175.91,5.27589069]
[1752752767117,34.96375582,175.94,175.92,0.71]
[1752752767322,34.96375582,175.94,175.92,5.98589069]
[1752752768025,34.96375582,175.94,175.93,5.27589069]
[1752752768612,34.96375582,175.94,175.92,5.27589069]
[1752752769032,35.34375582,175.94,175.9,5.27589069]
[1752752770246,35.34375582,175.94,175.91,5.27589069]
[1752752771136,35.34375582,175.94,175.9,5.27589069]
[1752752771546,49.17314538,175.94,175.89,0.71]
[1752752771752,0.38,175.93,175.89,5.27589069]
[1752752772737,5.684402,175.92,175.9,5.27589069]
[1752752772951,29.28,175.91,175.9,5.27589069]
[1752752773447,29.28,175.91,175.88,0.71]
[1752752773626,29.28,175.91,175.9,5.27589069]
[1752752773822,29.28,175.91,175.88,5.27589069]
[1752752774026,29.28,175.91,175.87,23.20000001]
[1752752774027,0.38,175.9,175.87,1e-08]
[1752752774830,0.38,175.89,175.87,1e-08]
[1752752775062,29.28,175.88,175.87,1e-08]
[1752752775632,29.66,175.88,175.87,1e-08]
[1752752775844,29.28,175.88,175.87,1e-08]
[1752752776730,34.96569479,175.88,175.87,1e-08]
[1752752776936,29.28,175.88,175.87,5.9858907]
[1752752777251,29.28,175.88,175.87,1e-08]
[1752752778647,29.28,175.88,175.87,5.2758907]
[1752752778852,34.96569479,175.88,175.87,5.2758907]
[1752752779534,34.96569479,175.88,175.87,5.9858907]
[1752752782573,34.96569479,175.88,175.87,5.2758907]
[1752752782726,35.34569479,175.88,175.87,1e-08]
[1752752782932,52.13037876,175.88,175.87,1e-08]
[1752752783454,57.40626945,175.88,175.87,1e-08]
[1752752784657,16.78468397,175.87,175.83,0.03]
[1752752784953,34.9663414,175.86,175.83,0.03]
[1752752785176,35.3463414,175.86,175.83,0.03]
[1752752785956,34.9663414,175.86,175.83,6.01589069]
[1752752786555,5.6863414,175.86,175.83,6.01589069]
[1752752786753,5.68698817,175.84,175.83,6.01589069]
[1752752787554,34.96698817,175.84,175.83,6.01589069]
[1752752788033,29.28,175.84,175.83,6.01589069]
[1752752788232,29.28,175.85,175.83,6.01589069]
[1752752788449,29.28,175.85,175.84,5.98589069]
[1752752788933,34.9666609,175.86,175.84,5.98589069]
[1752752789151,34.9666609,175.86,175.85,5.27589069]
[1752752789663,14.21423697,175.88,175.85,5.27589069]
[1752752789835,29.66,175.87,175.83,0.03]
[1752752790041,29.66,175.87,175.84,5.27589069]
[1752752790538,29.66,175.87,175.83,5.30589069]
[1752752790963,29.28,175.87,175.86,5.27589069]
[1752752791258,29.28,175.87,175.86,5.99589069]
[1752752791838,34.96601808,175.87,175.86,5.99589069]
[1752752792339,34.96601808,175.87,175.85,5.27589069]
[1752752792758,34.96601808,175.87,175.83,0.03]
[1752752792759,35.34601808,175.87,175.84,5.27589069]
[1752752793867,34.96601808,175.87,175.84,5.27589069]
[1752752794356,35.34601808,175.87,175.84,5.27589069]
[1752752794948,34.96601808,175.87,175.84,5.27589069]
[1752752795258,34.96601808,175.87,175.84,5.99589069]
[1752752795736,34.96601808,175.87,175.85,5.27589069]
[1752752795931,34.96601808,175.87,175.85,5.99589069]
[1752752795932,5.68601808,175.87,175.85,5.99589069]
[1752752796248,29.28,175.86,175.85,5.99589069]
[1752752796448,34.9663414,175.86,175.85,5.99589069]
[1752752796852,34.9663414,175.86,175.85,5.27589069]
[1752752797646,34.9663414,175.86,175.83,0.75]
[1752752797835,34.9663414,175.86,175.85,5.27589069]
[1752752798037,34.9663414,175.86,175.84,5.27589069]
[1752752799869,34.9663414,175.86,175.85,5.27589069]
[1752752800053,34.9663414,175.86,175.85,5.99589069]
[1752752801138,29.28,175.86,175.85,5.99589069]
[1752752802035,34.9663414,175.86,175.85,5.99589069]
[1752752802240,34.9663414,175.86,175.85,5.27589069]
[1752752806646,34.9663414,175.86,175.85,5.99589069]
[1752752807283,16.78468397,175.85,175.84,0.03]
[1752752808350,22.85134874,175.85,175.84,0.03]
[1752752808766,22.47134874,175.85,175.84,0.03]
[1752752809745,51.73134874,175.85,175.84,0.03]
[1752752810877,22.47134874,175.85,175.84,0.03]
[1752752811067,51.73134874,175.85,175.84,0.03]
[1752752812587,52.11134874,175.85,175.84,0.03]
[1752752812789,22.85134874,175.85,175.84,0.03]
[1752752813077,52.11134874,175.85,175.84,0.03]
[1752752813466,57.38723943,175.85,175.83,0.03]
[1752752813658,0.38,175.84,175.83,0.03]
[1752752813859,46.42468397,175.84,175.83,0.03]
[1752752814268,46.04468397,175.84,175.83,0.03]
[1752752814776,51.73167214,175.84,175.83,0.03]
[1752752814956,52.11167214,175.84,175.83,0.03]
[1752752815660,22.85167214,175.84,175.83,0.03]
[1752752815860,52.11167214,175.84,175.83,0.03]
[1752752816070,51.73167214,175.84,175.83,0.03]
[1752752817480,57.38756283,175.84,175.83,0.03]
[1752752817780,18.39598397,175.83,175.81,0.2]
[1752752817979,51.32057466,175.82,175.81,1e-08]
[1752752818169,57.38820974,175.82,175.81,1e-08]
[1752752819275,51.73231905,175.82,175.81,1e-08]
[1752752820068,5.68763508,175.82,175.81,1e-08]
[1752752820278,34.94763508,175.82,175.81,1e-08]
[1752752822185,57.38820974,175.82,175.81,1e-08]
[1752752824352,22.47231905,175.82,175.81,1e-08]
[1752752824557,51.73231905,175.82,175.81,1e-08]
[1752752825367,57.38820974,175.82,175.81,1e-08]
[1752752826679,16.78468397,175.81,175.8,1e-08]
[1752752826886,16.78468397,175.78,175.74,0.03]
[1752752827187,16.78468397,175.74,175.69,0.2]
[1752752827367,34.53589069,175.73,175.69,0.2]
[1752752827566,16.78468397,175.72,175.69,0.2]
[1752752827771,16.78468397,175.7,175.69,1e-08]
[1752752828285,22.44057466,175.7,175.61,5.98589069]
[1752752828455,16.78468397,175.66,175.61,5.98589069]
[1752752828661,29.26,175.65,175.61,5.98589069]
[1752752829165,29.26,175.65,175.61,0.71]
[1752752829472,29.26,175.65,175.61,5.98589069]
[1752752829778,29.26,175.65,175.62,5.98589069]
[1752752829988,29.26,175.65,175.63,0.71]
[1752752830224,29.26,175.65,175.59,0.71]
[1752752830358,5.6934639,175.64,175.6,5.27589069]
[1752752830564,29.26,175.63,175.59,5.98589069]
[1752752831290,29.26,175.63,175.59,0.71]
[1752752831474,29.26,175.63,175.59,5.98589069]
[1752752831984,29.26,175.63,175.59,0.71]
[1752752832491,19.92939299,175.62,175.58,5.27589069]
[1752752832668,29.26,175.61,175.59,5.98589069]
[1752752832869,29.26,175.61,175.59,5.27589069]
[1752752833264,29.26,175.61,175.58,5.27589069]
[1752752833465,29.26,175.61,175.58,5.98589069]
[1752752833896,29.26,175.61,175.59,0.71]
[1752752834592,5.69476082,175.6,175.59,5.98589069]
[1752752834975,5.69476082,175.6,175.58,5.27589069]
[1752752835168,5.69476082,175.6,175.57,0.71]
[1752752835169,29.28,175.59,175.57,0.71]
[1752752835493,16.78468397,175.59,175.57,0.71]
[1752752835790,29.28,175.58,175.57,0.71]
[1752752836096,29.28,175.58,175.56,5.27589069]
[1752752836290,5.69476082,175.6,175.57,5.98589069]
[1752752836472,34.97508514,175.59,175.58,5.27589069]
[1752752836672,34.97508514,175.59,175.51,26.0]
[1752752836673,54.48868868,175.59,175.54,5.98589069]
[1752752836989,54.48868868,175.59,175.55,0.21]
[1752752837192,54.48868868,175.59,175.54,5.27589069]
[1752752837488,55.20868868,175.59,175.54,5.27589069]
[1752752837666,17.50468397,175.58,175.51,26.0]
[1752752837870,16.78468397,175.56,175.51,5.27589069]
[1752752838071,29.28,175.55,175.51,5.27589069]
[1752752838271,29.28,175.54,175.53,5.27589069]
[1752752839093,29.28,175.54,175.51,0.71]
[1752752839279,46.06468397,175.54,175.5,0.71]
[1752752839474,46.06468397,175.54,175.5,5.98589069]
[1752752839796,0.72,175.53,175.49,6.07562747]
[1752752839999,29.28,175.52,175.5,0.71]
[1752752840292,16.78468397,175.55,175.51,5.98589069]
[1752752840495,5.69703184,175.53,175.51,0.71]
[1752752840705,29.28,175.52,175.51,0.71]
[1752752842424,14.23725014,175.6,175.51,5.98589069]
[1752752842710,29.28,175.59,175.58,5.27589069]
[1752752842897,29.28,175.59,175.58,5.98589069]
[1752752843687,29.28,175.59,175.58,0.71]
[1752752843885,29.28,175.59,175.58,5.98589069]
[1752752845606,29.28,175.61,175.58,5.98589069]
[1752752845805,29.28,175.61,175.6,5.27589069]
[1752752846110,29.28,175.61,175.6,5.98589069]
[1752752847503,29.28,175.63,175.6,5.98589069]
[1752752847704,29.28,175.63,175.62,5.27589069]
[1752752848205,29.28,175.63,175.62,4.27589069]
[1752752848618,29.28,175.63,175.62,4.98589069]
[1752752848912,29.28,175.63,175.62,0.71]
[1752752849120,29.28,175.63,175.62,5.98589069]
[1752752849530,16.40396889,175.7,175.62,5.98589069]
[1752752849696,5.27589069,175.71,175.62,5.98589069]
[1752752849697,5.69184358,175.69,175.68,5.27589069]
[1752752850021,29.28,175.69,175.68,5.27589069]
[1752752850321,29.28,175.69,175.68,5.93589069]
[1752752852395,29.34,175.71,175.68,5.93589069]
[1752752852748,29.34,175.71,175.7,5.27589069]
[1752752853796,29.34,175.71,175.7,2.77589069]
[1752752854395,35.03119572,175.71,175.7,2.77589069]
[1752752859198,35.03119572,175.71,175.7,5.27589069]
[1752752859717,35.69119572,175.71,175.67,5.27589069]
[1752752859901,35.03119572,175.71,175.67,5.27589069]
[1752752860092,0.66,175.7,175.67,5.27589069]
[1752752860297,29.28,175.69,175.67,5.27589069]
[1752752860501,0.66,175.68,175.66,5.27589069]
[1752752860804,29.94,175.67,175.64,5.27589069]
[1752752861123,34.97281566,175.66,175.64,5.27589069]
[1752752861505,34.97281566,175.66,175.61,0.66]
[1752752861728,35.63281566,175.66,175.63,5.27589069]
[1752752862041,34.97281566,175.66,175.63,5.27589069]
[1752752862207,34.97281566,175.66,175.61,26.66]
[1752752862404,34.97281566,175.66,175.64,5.27589069]
[1752752865835,5.69281566,175.66,175.64,5.93589069]
[1752752866009,29.28,175.66,175.65,5.93589069]
[1752752866604,29.28,175.66,175.62,0.66]
[1752752866823,29.28,175.66,175.65,5.27589069]
[1752752867527,34.97281566,175.66,175.65,5.27589069]
[1752752868033,34.97281566,175.66,175.63,0.66]
[1752752868261,34.97281566,175.66,175.6,0.66]
[1752752868410,0.66,175.65,175.6,5.27589069]
[1752752868610,29.92,175.64,175.61,5.27589069]
[1752752869222,29.26,175.64,175.62,5.27589069]
[1752752869430,5.69378807,175.63,175.62,5.27589069]
[1752752870734,34.97378807,175.63,175.62,5.27589069]
[1752752872819,34.97378807,175.63,175.62,0.03]
[1752752874632,34.97378807,175.63,175.62,5.30589069]
[1752752875934,29.28,175.63,175.62,5.96589069]
[1752752876532,34.97378807,175.63,175.62,5.30589069]
[1752752876734,34.97378807,175.63,175.62,0.03]
[1752752876924,34.97378807,175.63,175.62,5.30589069]
[1752752877539,34.97378807,175.63,175.62,5.96589069]
[1752752878833,34.97378807,175.63,175.62,0.69]
[1752752879134,34.97378807,175.63,175.62,5.96589069]
[1752752880039,34.97378807,175.63,175.62,5.30589069]
[1752752880839,34.97378807,175.63,175.62,6.01589069]
[1752752881135,34.97378807,175.63,175.62,0.03]
[1752752881332,34.97378807,175.63,175.62,5.30589069]
[1752752881536,34.97378807,175.63,175.62,0.03]
[1752752881738,35.63378807,175.63,175.62,0.03]
[1752752882531,40.90967876,175.63,175.62,0.03]
[1752752883342,40.90967876,175.63,175.53,5.69693855]
[1752752883343,16.78468397,175.62,175.55,5.27589069]
[1752752883541,35.19589069,175.61,175.56,5.27589069]
[1752752883743,29.92,175.61,175.56,5.27589069]
[1752752884044,5.69476082,175.6,175.57,5.98589069]
[1752752884227,29.26,175.59,175.58,0.71]
[1752752884722,5.69411228,175.62,175.58,5.98589069]
[1752752884925,29.26,175.61,175.59,5.98589069]
[1752752886147,34.95446285,175.61,175.59,5.98589069]
[1752752887441,34.95446285,175.61,175.59,5.27589069]
[1752752887638,34.95446285,175.61,175.58,5.27589069]
[1752752887837,34.95446285,175.61,175.59,5.27589069]
[1752752888222,34.95446285,175.61,175.59,5.98589069]
[1752752888526,34.95446285,175.61,175.6,5.27589069]
[1752752888731,5.69407065,175.63,175.6,5.98589069]
[1752752888931,29.28,175.62,175.61,5.27589069]
[1752752889134,29.28,175.62,175.61,5.98589069]
[1752752889832,5.69352538,175.64,175.61,5.98589069]
[1752752890033,5.69352538,175.64,175.58,5.69535846]
[1752752890034,5.69352538,175.64,175.63,5.27589069]
[1752752890265,34.97352538,175.64,175.63,5.98589069]
[1752752890745,34.97352538,175.64,175.63,0.71]
[1752752890947,34.97352538,175.64,175.63,5.98589069]
[1752752891438,5.69352538,175.64,175.63,5.27589069]
[1752752891646,34.95352538,175.64,175.63,5.98589069]
[1752752891841,29.26,175.64,175.63,5.98589069]
[1752752892233,29.26,175.64,175.63,0.71]
[1752752892549,29.26,175.64,175.63,5.98589069]
[1752752892932,5.6924916,175.67,175.63,5.98589069]
[1752752893132,29.26,175.66,175.65,5.27589069]
[1752752894061,29.92,175.66,175.64,5.27589069]
[1752752894353,29.26,175.66,175.64,5.27589069]
[1752752895030,5.69313976,175.65,175.64,5.27589069]
[1752752896056,35.01289174,175.66,175.64,5.27589069]
[1752752896259,35.01289174,175.66,175.62,0.74]
[1752752896260,29.32,175.66,175.65,5.98589069]
[1752752896642,0.06,175.66,175.65,5.98589069]
[1752752900053,0.06,175.66,175.63,23.91]
[1752752900359,29.98,175.66,175.63,28.47589069]
[1752752900759,0.66,175.65,175.63,23.2]
[1752752900940,29.26,175.64,175.62,0.03]
[1752752901341,6.35378807,175.63,175.62,0.03]
[1752752903752,5.69378807,175.63,175.62,0.03]
[1752752904538,34.95378807,175.63,175.62,0.03]
[1752752905765,5.69313976,175.65,175.62,6.01589069]
[1752752905946,34.95313976,175.65,175.64,5.27589069]
[1752752906139,0.06,175.66,175.64,5.98589069]
[1752752906456,0.06,175.66,175.65,5.98589069]
[1752752908864,17.50468397,175.66,175.62,0.03]
[1752752909035,29.26,175.65,175.62,5.30589069]
[1752752909657,5.6934639,175.64,175.63,5.27589069]
[1752752910577,29.26,175.65,175.63,5.93589069]
[1752752910784,29.26,175.65,175.64,5.27589069]
[1752752910785,34.95317034,175.65,175.64,5.27589069]
[1752752911141,34.95317034,175.65,175.64,5.93589069]
[1752752913142,29.26,175.65,175.64,5.93589069]
[1752752913363,34.95313976,175.65,175.64,5.93589069]
[1752752914762,34.95313976,175.65,175.62,0.03]
[1752752914969,34.95313976,175.65,175.63,5.27589069]
[1752752915552,34.95313976,175.65,175.64,5.27589069]
[1752752916971,35.01313976,175.65,175.64,5.27589069]
[1752752919281,35.01313976,175.65,175.62,0.69]
[1752752919476,35.01313976,175.65,175.64,5.27589069]
[1752752921171,35.01313976,175.65,175.62,0.03]
[1752752921172,6.42313976,175.65,175.62,0.03]
[1752752921371,29.26,175.64,175.62,0.03]
[1752752921565,29.93,175.64,175.62,0.03]
[1752752922175,29.26,175.64,175.62,0.03]
[1752752923082,5.69378807,175.63,175.62,0.03]
[1752752923376,5.69358324,175.64,175.62,5.30589069]
[1752752923554,5.69358324,175.64,175.63,5.27589069]
[1752752923763,5.69358324,175.64,175.63,5.93589069]
[1752752927871,0.06,175.65,175.63,5.93589069]
[1752752928163,0.06,175.65,175.64,5.93589069]
[1752752929081,0.06,175.65,175.64,34.82935459]
[1752752929978,0.06,175.65,175.64,5.93589069]
[1752752930982,0.06,175.65,175.64,0.66]
[1752752931279,0.06,175.65,175.64,5.93589069]
[1752752933873,0.06,175.65,175.64,0.66]
[1752752934070,0.06,175.65,175.64,5.93589069]
[1752752935653,0.06,175.65,175.64,0.66]
[1752752935977,0.06,175.65,175.64,5.93589069]
[1752752938067,0.06,175.65,175.64,11.62935459]
[1752752938261,0.06,175.65,175.64,34.82935459]
[1752752938481,0.06,175.65,175.64,29.13589069]
[1752752939176,0.06,175.65,175.64,34.82935459]
[1752752940771,1e-08,175.65,175.64,34.82935459]
[1752752941078,0.06,175.66,175.64,34.82935459]
[1752752941279,0.06,175.66,175.65,5.97589069]
[1752752943792,0.06,175.66,175.65,11.66903045]
[1752752946780,0.06,175.66,175.64,23.2]
[1752752947177,0.72,175.65,175.63,24.27589388]